fUSD/lending_fUSD_20240423
["ID","MTS","AMOUNT","RATE_DAILY","PERIOD"]
[323291334,1713877833551,-500.0,0.00011472,2]
[323291335,1713877833562,-500.0,0.00011472,2]
[323291336,1713877833571,-500.0,0.00011472,2]
[323291337,1713877833581,-500.0,0.00011472,2]
[323291338,1713877833590,-500.0,0.00011472,2]
[323291339,1713877833600,-500.0,0.00011472,2]
[323291340,1713877833610,-740.01,0.00011472,2]
[323291341,1713877833619,-500.0,0.00011472,2]
[323291342,1713877833629,-795.07,0.00011472,2]
[323291343,1713877833639,-500.0,0.00011472,2]
[323291344,1713877833649,-500.0,0.00011472,2]
[323291345,1713877833658,-500.0,0.00011472,2]
[323291346,1713877833668,-500.0,0.00011472,2]
[323291347,1713877833677,-500.0,0.00011472,2]
[323291348,1713877833686,-503.2775593,0.00011472,2]
[323291349,1713877833696,-500.0,0.00011472,2]
[323291350,1713877833705,-500.0,0.00011472,2]
[323291351,1713877833714,-500.0,0.00011472,2]
[323291352,1713877833723,-500.0,0.00011472,2]
[323291353,1713877833733,-552.88,0.00011472,2]
[323291354,1713877833742,-500.0,0.00011472,2]
[323291355,1713877833751,-545.54,0.00011472,2]
[323291356,1713877833760,-500.0,0.00011472,2]
[323291357,1713877833769,-500.0,0.00011472,2]
[323291358,1713877833778,-429.6009224,0.00011472,2]
[323291359,1713877833787,-757.73,0.00011472,2]
[323291360,1713877833796,-500.0,0.00011472,2]
[323291361,1713877833805,-550.11352438,0.00011472,2]
[323291362,1713877833814,-500.0,0.00011472,2]
[323291363,1713877833825,-500.0,0.00011472,2]
[323291364,1713877833834,-500.0,0.00011472,2]
[323291365,1713877833844,-500.0,0.00011472,2]
[323291366,1713877833853,-500.0,0.00011472,2]
[323291367,1713877833862,-500.0,0.00011472,2]
[323291368,1713877833871,-500.0,0.00011472,2]
[323291369,1713877833881,-202.8,0.00011472,2]
[323291370,1713877833890,-505.92504864,0.00011472,2]
[323291371,1713877833900,-500.0,0.00011472,2]
[323291372,1713877833909,-500.0,0.00011472,2]
[323291373,1713877833918,-865.98,0.00011472,2]
[323291374,1713877833928,-500.0,0.00011472,2]
[323291375,1713877833938,-500.0,0.00011472,2]
[323291376,1713877833948,-500.0,0.00011472,2]
[323291377,1713877833958,-500.0,0.00011472,2]
[323291378,1713877833968,-15436.81,0.00011472,2]
[323291379,1713877833978,-500.0,0.00011472,2]
[323291380,1713877833989,-413.34776996,0.00011472,2]
[323291381,1713877833998,-500.0,0.00011472,2]
[323291382,1713877834008,-500.0,0.00011472,2]
[323291383,1713877834018,-1761.3,0.00011472,2]
[323291384,1713877834028,-500.0,0.00011472,2]
[323291385,1713877834037,-500.0,0.00011472,2]
[323291386,1713877834048,-500.0,0.00011472,2]
[323291387,1713877834057,-500.0,0.00011472,2]
[323291388,1713877834067,-786.32,0.00011472,2]
[323291389,1713877834080,-883.29,0.00011472,2]
[323291390,1713877834090,-569.42,0.00011472,2]
[323291391,1713877834100,-500.0,0.00011472,2]
[323291392,1713877834110,-375.38,0.00011472,2]
[323291393,1713877834119,-500.0,0.00011472,2]
[323291394,1713877834130,-1006.3,0.00011472,2]
[323291395,1713877834139,-1558.69,0.00011472,2]
[323291396,1713877834149,-500.0,0.00011472,2]
[323291397,1713877834158,-500.0,0.00011472,2]
[323291398,1713877834167,-853.16,0.00011472,2]
[323291399,1713877834176,-1288.5,0.00011472,2]
[323291400,1713877834185,-500.0,0.00011472,2]
[323291401,1713877834194,-500.0,0.00011472,2]
[323291402,1713877834204,-500.0,0.00011472,2]
[323291403,1713877834214,-508.36,0.00011472,2]
[323291404,1713877834224,-500.0,0.00011472,2]
[323291405,1713877834233,-500.0,0.00011472,2]
[323291406,1713877834243,-500.0,0.00011472,2]
[323291407,1713877834253,-1200.91,0.00011472,2]
[323291408,1713877834262,-500.0,0.00011472,2]
[323291409,1713877834272,-500.0,0.00011472,2]
[323291410,1713877834281,-3407.99,0.00011472,2]
[323291411,1713877834291,-500.0,0.00011472,2]
[323291412,1713877834302,-500.0,0.00011472,2]
[323291413,1713877834311,-500.0,0.00011472,2]
[323291414,1713877834320,-1000.0,0.00011472,2]
[323291415,1713877834335,-500.0,0.00011472,2]
[323291416,1713877834345,-500.0,0.00011472,2]
[323291417,1713877834354,-500.0,0.00011472,2]
[323291418,1713877834363,-500.0,0.00011472,2]
[323291419,1713877834372,-516.22,0.00011472,2]
[323291420,1713877834381,-14351.2,0.00011472,2]
[323291421,1713877834391,-674.61,0.00011472,2]
[323291422,1713877834400,-486.86495889,0.00011472,2]
[323291423,1713877834409,-500.0,0.00011472,2]
[323291424,1713877834418,-1064.52,0.00011472,2]
[323291425,1713877834428,-500.0,0.00011472,2]
[323291426,1713877834437,-1870.78,0.00011472,2]
[323291427,1713877834446,-558.36,0.00011472,2]
[323291428,1713877834455,-901.68,0.00011472,2]
[323291429,1713877834465,-500.0,0.00011472,2]
[323291430,1713877834474,-500.41,0.00011472,2]
[323291431,1713877834483,-500.0,0.00011472,2]
[323291432,1713877834493,-2360.25,0.00011472,2]
[323291433,1713877834502,-2740.74,0.00011472,2]
[323291434,1713877834511,-1680.98,0.00011472,2]
[323291435,1713877834520,-500.0,0.00011472,2]
[323291436,1713877834529,-500.0,0.00011472,2]
[323291437,1713877834539,-559.42,0.00011472,2]
[323291438,1713877834549,-500.0,0.00011472,2]
[323291439,1713877834561,-500.0,0.00011472,2]
[323291440,1713877834570,-2277.71,0.00011472,2]
[323291441,1713877834583,-500.0,0.00011472,2]
[323291442,1713877834592,-568.99,0.00011472,2]
[323291443,1713877834601,-3269.03,0.00011472,2]
[323291444,1713877834610,-1874.1,0.00011472,2]
[323291445,1713877834619,-571.51,0.00011472,2]
[323291446,1713877834628,-500.0,0.00011472,2]
[323291447,1713877834637,-500.0,0.00011472,2]
[323291448,1713877834646,-222.94,0.00011472,2]
[323291449,1713877834655,-2169.86,0.00011472,2]
[323291450,1713877834664,-500.0,0.00011472,2]
[323291451,1713877834673,-586.86,0.00011472,2]
[323291452,1713877834682,-500.0,0.00011472,2]
[323291453,1713877834691,-500.0,0.00011472,2]
[323291454,1713877834700,-500.0,0.00011472,2]
[323291455,1713877834709,-15151.92,0.00011472,2]
[323291456,1713877834718,-500.0,0.00011472,2]
[323291457,1713877834728,-500.0,0.00011472,2]
[323291458,1713877834737,-500.0,0.00011472,2]
[323291459,1713877834746,-500.0,0.00011472,2]
[323291460,1713877834755,-1597.42,0.00011472,2]
[323291461,1713877834764,-5502.34,0.00011472,2]
[323291462,1713877834773,-619.89,0.00011472,2]
[323291463,1713877834783,-500.0,0.00011472,2]
[323291464,1713877834792,-500.0,0.00011472,2]
[323291465,1713877834801,-500.0,0.00011472,2]
[323291466,1713877834810,-500.0,0.00011472,2]
[323291467,1713877834819,-155.0,0.00011473,2]
[323291468,1713877834830,-443.38685747,0.00011473,2]
[323291469,1713877836455,-150.0,0.00011264,2]
[323291470,1713877836466,-150.0,0.00011343,2]
[323291471,1713877836476,-500.0,0.00011472,2]
[323291472,1713877836486,-3417.49108368,0.00011473,2]
[323291473,1713877836496,-500.0,0.00011473,2]
[323291474,1713877836506,-500.0,0.00011473,2]
[323291475,1713877836516,-500.0,0.00011473,2]
[323291476,1713877836526,-500.0,0.00011473,2]
[323291477,1713877836536,-542.35,0.00011473,2]
[323291478,1713877836546,-500.0,0.00011473,2]
[323291479,1713877836558,-555.58,0.00011473,2]
[323291480,1713877836568,-500.0,0.00011473,2]
[323291481,1713877836579,-500.0,0.00011473,2]
[323291482,1713877836588,-500.0,0.00011473,2]
[323291483,1713877836599,-500.0,0.00011473,2]
[323291484,1713877836609,-731.08,0.00011473,2]
[323291485,1713877836619,-1272.4,0.00011473,2]
[323291486,1713877836629,-592.71976345,0.00011473,2]
[323291487,1713877836639,-500.0,0.00011473,2]
[323291488,1713877836648,-500.0,0.00011473,2]
[323291489,1713877836658,-737.04,0.00011473,2]
[323291490,1713877836667,-500.0,0.00011473,2]
[323291491,1713877836677,-368.79260267,0.00011473,2]
[323291492,1713877836687,-37.0132915,0.00011473,2]
[323291493,1713877836715,-150.0,0.00011263,2]
[323291494,1713877836725,-462.9867085,0.00011473,2]
[323291495,1713877836735,-802.03,0.00011473,2]
[323291496,1713877836744,-500.0,0.00011473,2]
[323291497,1713877836754,-500.0,0.00011473,2]
[323291498,1713877836764,-500.0,0.00011473,2]
[323291499,1713877836775,-500.0,0.00011473,2]
[323291500,1713877836784,-500.0,0.00011473,2]
[323291501,1713877836794,-117.27434155,0.00011473,2]
[323291502,1713877836807,-382.72565845,0.00011473,2]
[323291503,1713877836817,-500.0,0.00011473,2]
[323291504,1713877836828,-409.18184365,0.00011473,2]
[323291505,1713877836840,-90.81815635,0.00011473,2]
[323291506,1713877836850,-361.92118566,0.00011473,2]
[323291507,1713877837104,-138.07881434,0.00011473,2]
[323291508,1713877837114,-201.72,0.00011473,2]
[323291509,1713877837124,-193.29908213,0.00011473,2]
[323291510,1713877837136,-306.70091787,0.00011473,2]
[323291511,1713877837145,-500.0,0.00011473,2]
[323291512,1713877837154,-500.0,0.00011473,2]
[323291513,1713877837164,-500.0,0.00011473,2]
[323291514,1713877837174,-500.0,0.00011473,2]
[323291515,1713877837184,-500.0,0.00011473,2]
[323291516,1713877837193,-500.0,0.00011473,2]
[323291517,1713877837203,-500.0,0.00011473,2]
[323291518,1713877837213,-500.0,0.00011473,2]
[323291519,1713877837223,-500.0,0.00011473,2]
[323291520,1713877837233,-500.0,0.00011473,2]
[323291521,1713877837242,-500.0,0.00011473,2]
[323291522,1713877837252,-500.0,0.00011473,2]
[323291523,1713877837262,-464.69908213,0.00011473,2]
[323291524,1713877837296,150.0,0.000112,2]
[323291525,1713877837316,-202.07091787,0.00011473,2]
[323291526,1713877837327,-336.80908213,0.00011473,2]
[323291527,1713877837339,-163.19091787,0.00011473,2]
[323291529,1713877837349,-500.0,0.00011473,2]
[323291530,1713877837358,-115.44292908,0.00011473,2]
[323291532,1713877837370,-384.55707092,0.00011473,2]
[323291533,1713877837379,-500.0,0.00011473,2]
[323291534,1713877837389,-500.0,0.00011473,2]
[323291535,1713877837398,-500.0,0.00011473,2]
[323291536,1713877837408,-500.0,0.00011473,2]
[323291537,1713877837417,-568.94,0.00011473,2]
[323291538,1713877837427,-764.92,0.00011473,2]
[323291539,1713877837436,-500.0,0.00011473,2]
[323291540,1713877837446,-500.0,0.00011473,2]
[323291541,1713877837456,-14.65574902,0.00011473,2]
[323291542,1713877837468,-485.34425098,0.00011473,2]
[323291543,1713877837478,-551.3,0.00011473,2]
[323291544,1713877837487,-500.0,0.00011473,2]
[323291545,1713877837497,-500.0,0.00011473,2]
[323291546,1713877837507,-500.0,0.00011473,2]
[323291547,1713877837517,-500.0,0.00011473,2]
[323291548,1713877837527,-500.0,0.00011473,2]
[323291549,1713877837537,-500.0,0.00011473,2]
[323291550,1713877837547,-500.0,0.00011473,2]
[323291551,1713877837560,-500.0,0.00011473,2]
[323291552,1713877837569,-500.0,0.00011473,2]
[323291553,1713877837580,-500.0,0.00011473,2]
[323291554,1713877837589,-500.0,0.00011473,2]
[323291555,1713877837598,-500.0,0.00011473,2]
[323291556,1713877837608,-555.86,0.00011473,2]
[323291557,1713877837617,-500.0,0.00011473,2]
[323291558,1713877837627,-500.0,0.00011473,2]
[323291559,1713877837637,-189.37399269,0.00011473,2]
[323291560,1713877837649,-310.62600731,0.00011473,2]
[323291561,1713877837658,-500.0,0.00011473,2]
[323291562,1713877837667,-77.88289675,0.00011473,2]
[323291563,1713877837683,-514.08710325,0.00011473,2]
[323291564,1713877837693,-234.33291675,0.00011473,2]
[323291603,1713877838863,-643.6999,0.00011372,2]
[323291604,1713877838873,-500.0,0.00011472,2]
[323291606,1713877838882,-1040.66,0.00011472,2]
[323291608,1713877838891,-265.66708325,0.00011473,2]
[323291610,1713877838901,-500.0,0.00011473,2]
[323291612,1713877838910,-500.0,0.00011473,2]
[323291614,1713877838920,-517.91,0.00011473,2]
[323291616,1713877838929,-500.0,0.00011473,2]
[323291618,1713877838939,-500.0,0.00011473,2]
[323291620,1713877838948,-500.0,0.00011473,2]
[323291622,1713877838956,-158.02301675,0.00011473,2]
[323291626,1713877838985,-341.97698325,0.00011473,2]
[323291628,1713877838995,-500.0,0.00011473,2]
[323291630,1713877839004,-65.89502703,0.00011473,2]
[323291633,1713877839023,-1023.27497297,0.00011473,2]
[323291635,1713877839033,-938.53,0.00011473,2]
[323291637,1713877839042,-500.0,0.00011473,2]
[323291639,1713877839051,-500.0,0.00011473,2]
[323291641,1713877839061,-500.0,0.00011473,2]
[323291643,1713877839071,-1087.7,0.00011473,2]
[323291645,1713877839080,-647.28,0.00011473,2]
[323291647,1713877839089,-500.0,0.00011473,2]
[323291649,1713877839098,-720.91,0.00011473,2]
[323291651,1713877839107,-2321.61,0.00011473,2]
[323291653,1713877839117,-500.0,0.00011473,2]
[323291655,1713877839126,-500.0,0.00011473,2]
[323291657,1713877839135,-509.5936323,0.00011473,2]
[323291659,1713877839144,-671.85,0.00011473,2]
[323291661,1713877839154,-500.0,0.00011473,2]
[323291663,1713877839163,-636.36,0.00011473,2]
[323291665,1713877839172,-249.64,0.00011473,2]
[323291667,1713877839181,-660.29,0.00011473,2]
[323291669,1713877839190,-500.0,0.00011473,2]
[323291671,1713877839199,-500.0,0.00011473,2]
[323291673,1713877839207,-500.0,0.00011473,2]
[323291675,1713877839217,-500.0,0.00011473,2]
[323291678,1713877839226,-32593.75,0.00011473,2]
[323291680,1713877839235,-500.0,0.00011473,2]
[323291681,1713877839244,-500.0,0.00011473,2]
[323291684,1713877839253,-500.0,0.00011473,2]
[323291685,1713877839262,-500.0,0.00011473,2]
[323291688,1713877839271,-549.78,0.00011473,2]
[323291689,1713877839280,-516.45,0.00011473,2]
[323291692,1713877839289,-659.77,0.00011473,2]
[323291694,1713877839299,-2353.59,0.00011473,2]
[323291696,1713877839307,-500.0,0.00011473,2]
[323291698,1713877839317,-500.0,0.00011473,2]
[323291700,1713877839326,-637.08,0.00011473,2]
[323291702,1713877839335,-2104.16,0.00011473,2]
[323291703,1713877839345,-500.0,0.00011473,2]
[323291705,1713877839354,-5654.28,0.00011473,2]
[323291707,1713877839364,-500.0,0.00011473,2]
[323291709,1713877839373,-500.0,0.00011473,2]
[323291711,1713877839382,-500.0,0.00011473,2]
[323291713,1713877839391,-500.0,0.00011473,2]
[323291715,1713877839401,-500.0,0.00011473,2]
[323291717,1713877839410,-1800.4,0.00011473,2]
[323291720,1713877839420,-500.0,0.00011473,2]
[323291722,1713877839429,-500.0,0.00011473,2]
[323291723,1713877839438,-500.0,0.00011473,2]
[323291726,1713877839447,-153.34395743,0.00011473,2]
[323291727,1713877839456,-500.0,0.00011473,2]
[323291730,1713877839467,-796.65,0.00011473,2]
[323291731,1713877839476,-1502.65,0.00011473,2]
[323291733,1713877839485,-500.0,0.00011473,2]
[323291735,1713877839494,-5865.59,0.00011473,2]
[323291737,1713877839503,-500.0,0.00011473,2]
[323291739,1713877839512,-961.44,0.00011473,2]
[323291741,1713877839520,-500.0,0.00011473,2]
[323291743,1713877839529,-1364.17,0.00011473,2]
[323291745,1713877839539,-1868.43,0.00011473,2]
[323291747,1713877839548,-523.23,0.00011473,2]
[323291749,1713877839560,-2815.58,0.00011473,2]
[323291751,1713877839569,-500.0,0.00011473,2]
[323291753,1713877839579,-500.0,0.00011473,2]
[323291755,1713877839587,-500.0,0.00011473,2]
[323291757,1713877839597,-500.0,0.00011473,2]
[323291759,1713877839606,-500.0,0.00011473,2]
[323291761,1713877839615,-500.0,0.00011473,2]
[323291763,1713877839626,-500.0,0.00011473,2]
[323291765,1713877839635,-500.0,0.00011473,2]
[323291767,1713877839644,-500.0,0.00011473,2]
[323291769,1713877839653,-500.0,0.00011473,2]
[323291771,1713877839662,-506.28,0.00011473,2]
[323291773,1713877839671,-1772.14,0.00011473,2]
[323291775,1713877839680,-500.0,0.00011473,2]
[323291777,1713877839688,-500.0,0.00011473,2]
[323291779,1713877839697,-524.09,0.00011473,2]
[323291781,1713877839706,-500.0,0.00011473,2]
[323291783,1713877839715,-500.0,0.00011473,2]
[323291785,1713877839725,-500.0,0.00011473,2]
[323291787,1713877839734,-728.49,0.00011473,2]
[323291789,1713877839743,-500.0,0.00011474,2]
[323291791,1713877839752,-500.0,0.00011474,2]
[323291793,1713877839761,-733.91,0.00011474,2]
[323291794,1713877839770,-500.0,0.00011474,2]
[323291795,1713877839779,-500.0,0.00011474,2]
[323291796,1713877839788,-500.0,0.00011474,2]
[323291797,1713877839796,-538.13,0.00011474,2]
[323291798,1713877839806,-500.0,0.00011474,2]
[323291799,1713877839816,-571.88,0.00011474,2]
[323291800,1713877839826,-500.0,0.00011474,2]
[323291801,1713877839836,-500.0,0.00011474,2]
[323291802,1713877839845,-648.04,0.00011474,2]
[323291803,1713877839854,-320.58,0.00011474,2]
[323291804,1713877839863,-500.0,0.00011474,2]
[323291805,1713877839872,-500.0,0.00011474,2]
[323291806,1713877839881,-604.76,0.00011474,2]
[323291807,1713877839891,-500.0,0.00011474,2]
[323291808,1713877839900,-982.09,0.00011474,2]
[323291809,1713877839909,-500.0,0.00011474,2]
[323291810,1713877839918,-500.0,0.00011474,2]
[323291811,1713877839928,-500.0,0.00011474,2]
[323291812,1713877839937,-500.0,0.00011474,2]
[323291813,1713877839946,-500.0,0.00011474,2]
[323291814,1713877839956,-500.0,0.00011474,2]
[323291815,1713877839965,-500.0,0.00011474,2]
[323291816,1713877839974,-500.0,0.00011474,2]
[323291817,1713877839983,-500.0,0.00011474,2]
[323291818,1713877839992,-215.62,0.00011474,2]
[323291819,1713877840001,-500.0,0.00011474,2]
[323291820,1713877840010,-500.0,0.00011474,2]
[323291821,1713877840019,-500.0,0.00011474,2]
[323291822,1713877840029,-500.0,0.00011474,2]
[323291823,1713877840038,-500.0,0.00011474,2]
[323291824,1713877840047,-500.0,0.00011474,2]
[323291825,1713877840056,-500.0,0.00011474,2]
[323291826,1713877840065,-500.0,0.00011474,2]
[323291827,1713877840074,-1145.22,0.00011474,2]
[323291828,1713877840083,-500.0,0.00011474,2]
[323291829,1713877840092,-500.0,0.00011474,2]
[323291830,1713877840102,-500.0,0.00011474,2]
[323291831,1713877840111,-500.0,0.00011474,2]
[323291832,1713877840120,-500.0,0.00011474,2]
[323291833,1713877840130,-1163.67,0.00011474,2]
[323291834,1713877840139,-500.0,0.00011474,2]
[323291835,1713877840147,-500.0,0.00011474,2]
[323291836,1713877840157,-500.0,0.00011474,2]
[323291837,1713877840166,-1079.95,0.00011474,2]
[323291838,1713877840175,-500.0,0.00011474,2]
[323291839,1713877840184,-1680.68,0.00011474,2]
[323291841,1713877840193,-500.0,0.00011474,2]
[323291842,1713877840202,-386.50304651,0.00011474,2]
[323291843,1713877840212,-500.0,0.00011474,2]
[323291844,1713877840221,-457.08912956,0.00011474,2]
[323291845,1713877840230,-500.0,0.00011474,2]
[323291846,1713877840239,-500.0,0.00011474,2]
[323291847,1713877840247,-500.0,0.00011474,2]
[323291848,1713877840256,-282.54872865,0.00011474,2]
[323291849,1713877840265,-385.81,0.00011474,2]
[323291850,1713877840274,-802.95,0.00011474,2]
[323291851,1713877840283,-275.8949102,0.00011474,2]
[323291852,1713877840292,-500.0,0.00011474,2]
[323291853,1713877840301,-500.0,0.00011474,2]
[323291854,1713877840310,-500.0,0.00011474,2]
[323291855,1713877840319,-500.0,0.00011474,2]
[323291856,1713877840329,-570.08,0.00011474,2]
[323291857,1713877840338,-500.0,0.00011474,2]
[323291858,1713877840347,-500.0,0.00011474,2]
[323291859,1713877840357,-500.0,0.00011474,2]
[323291860,1713877840366,-500.0,0.00011474,2]
[323291861,1713877840375,-500.0,0.00011474,2]
[323291862,1713877840384,-500.0,0.00011474,2]
[323291863,1713877840394,-500.0,0.00011474,2]
[323291864,1713877840403,-500.0,0.00011474,2]
[323291865,1713877840412,-500.0,0.00011474,2]
[323291866,1713877840421,-1463.93,0.00011474,2]
[323291867,1713877840430,-500.0,0.00011474,2]
[323291868,1713877840439,-500.0,0.00011474,2]
[323291869,1713877840448,-500.0,0.00011474,2]
[323291870,1713877840457,-500.0,0.00011474,2]
[323291871,1713877840466,-500.0,0.00011474,2]
[323291872,1713877840475,-500.0,0.00011474,2]
[323291873,1713877840484,-500.0,0.00011474,2]
[323291874,1713877840493,-500.0,0.00011474,2]
[323291875,1713877840502,-1121.67,0.00011474,2]
[323291876,1713877840511,-563.25,0.00011474,2]
[323291877,1713877840521,-678.49,0.00011474,2]
[323291878,1713877840530,-551.83,0.00011474,2]
[323291879,1713877840539,-500.0,0.00011474,2]
[323291880,1713877840548,-500.0,0.00011474,2]
[323291881,1713877840560,-500.0,0.00011474,2]
[323291882,1713877840569,-500.0,0.00011474,2]
[323291883,1713877840791,-500.0,0.00011474,2]
[323291884,1713877840802,-500.0,0.00011474,2]
[323291885,1713877840811,-500.0,0.00011474,2]
[323291886,1713877840820,-500.0,0.00011474,2]
[323291887,1713877840830,-1019.67,0.00011474,2]
[323291888,1713877840839,-500.0,0.00011474,2]
[323291889,1713877840848,-500.0,0.00011474,2]
[323291890,1713877840857,-500.0,0.00011474,2]
[323291891,1713877840866,-500.0,0.00011474,2]
[323291892,1713877840875,-1504.69,0.00011474,2]
[323291893,1713877840884,-500.0,0.00011474,2]
[323291894,1713877840893,-500.0,0.00011474,2]
[323291895,1713877840902,-562.1,0.00011474,2]
[323291896,1713877840911,-608.33,0.00011474,2]
[323291897,1713877840919,-500.0,0.00011474,2]
[323291898,1713877840928,-655.57,0.00011474,2]
[323291899,1713877840938,-500.0,0.00011474,2]
[323291900,1713877840947,-752.1,0.00011474,2]
[323291901,1713877840957,-500.0,0.00011474,2]
[323291902,1713877840966,-500.0,0.00011474,2]
[323291903,1713877840975,-500.0,0.00011474,2]
[323291904,1713877840985,-500.0,0.00011474,2]
[323291905,1713877840994,-500.0,0.00011474,2]
[323291906,1713877841004,-500.0,0.00011474,2]
[323291907,1713877841013,-500.0,0.00011474,2]
[323291908,1713877841023,-500.0,0.00011474,2]
[323291909,1713877841032,-500.0,0.00011474,2]
[323291910,1713877841042,-500.0,0.00011474,2]
[323291911,1713877841051,-500.0,0.00011474,2]
[323291912,1713877841060,-500.0,0.00011474,2]
[323291913,1713877841070,-500.0,0.00011474,2]
[323291914,1713877841079,-500.0,0.00011474,2]
[323291915,1713877841089,-500.0,0.00011474,2]
[323291916,1713877841098,-467.3392189,0.00011474,2]
[323291917,1713877841113,-186.0807811,0.00011474,2]
[323291918,1713877841122,-153.76398599,0.00011474,2]
[323291919,1713877841141,-346.23601401,0.00011474,2]
[323291920,1713877841149,-426.52880091,0.00011474,2]
[323291921,1713877841453,-73.47119909,0.00011474,2]
[323291922,1713877841463,-500.0,0.00011474,2]
[323291923,1713877841473,-500.0,0.00011474,2]
[323291924,1713877841483,-515.0419251,0.00011474,2]
[323291925,1713877841493,-500.0,0.00011474,2]
[323291926,1713877841502,-501.7,0.00011474,2]
[323291927,1713877841511,-154.87300484,0.00011474,2]
[323291928,1713877841531,-345.12699516,0.00011474,2]
[323291929,1713877841541,-214.18,0.00011474,2]
[323291930,1713877841551,-500.0,0.00011474,2]
[323291931,1713877841565,-500.0,0.00011474,2]
[323291932,1713877841575,-500.0,0.00011474,2]
[323291933,1713877841585,-500.0,0.00011474,2]
[323291934,1713877841595,-500.0,0.00011474,2]
[323291935,1713877841605,-500.0,0.00011474,2]
[323291936,1713877841614,-500.0,0.00011474,2]
[323291937,1713877841623,-1508.24,0.00011474,2]
[323291938,1713877841635,-500.0,0.00011474,2]
[323291939,1713877841645,-520.28,0.00011474,2]
[323291940,1713877841655,-500.0,0.00011474,2]
[323291941,1713877841665,-500.0,0.00011474,2]
[323291942,1713877841675,-500.0,0.00011474,2]
[323291943,1713877841685,-500.0,0.00011474,2]
[323291944,1713877841694,-500.0,0.00011474,2]
[323291945,1713877841704,-1043.36,0.00011474,2]
[323291946,1713877841714,-500.0,0.00011474,2]
[323291947,1713877841724,-500.0,0.00011474,2]
[323291948,1713877841733,-500.0,0.00011474,2]
[323291949,1713877841743,-1000.0,0.000115,2]
[323291950,1713877841753,-500.0,0.000116,4]
[323291951,1713877841763,-150.0,0.00011601,2]
[323291952,1713877841772,-150.0,0.00011609,2]
[323291953,1713877841782,-150.0,0.00011618,2]
[323291954,1713877841792,-630.12,0.00011622,2]
[323291955,1713877841801,-150.0,0.0001163,2]
[323291956,1713877841810,-150.0,0.00011633,2]
[323291957,1713877841820,-234.0033369,0.00011646,2]
[323291958,1713877841830,-150.0,0.00011654,2]
[323291959,1713877841840,-150.0,0.00011659,2]
[323291960,1713877841849,-150.0,0.0001166,2]
[323291961,1713877841859,-150.0,0.00011661,2]
[323291962,1713877841870,-150.0,0.00011663,2]
[323291963,1713877841880,-150.0,0.00011671,2]
[323291964,1713877841889,-150.0,0.00011686,2]
[323291965,1713877841899,-150.0,0.00011687,2]
[323291966,1713877841909,-150.0,0.00011694,2]
[323291967,1713877841919,-500.0,0.00011696,2]
[323291968,1713877841928,-500.0,0.00011696,2]
[323291969,1713877841938,-1516.22,0.00011696,2]
[323291970,1713877841947,-521.64,0.000117,2]